Cogmind - Beta 11.1 @@@ ROGUE MODE // 2022.05.01 @ 05:15:40 Player: Olga Result: Destroyed by S-27 Virus with Autogun Performance ------------- Evolutions (6) 3000 Regions Visited (8) 1600 Robots Destroyed (0) 0 Value Destroyed (0) 0 Prototype IDs (1) 20 Alien Tech Used (0) 0 Bonus (3380) 3380 TOTAL SCORE: 8000 Bonus ------- Pacifist 2880 Entered DSFs 500 Cogmind --------- Core Integrity 0/1150 Matter 290/300 Energy 82/100 System Corruption 1% Temperature Cool (2) Movement Hovering (60) Location -4/Factory Parts ------- > --- POWER (1) -------- (None) > --- PROPULSION (4) --- Antigrav System > --- UTILITY (12) ----- Core Analyzer > --- WEAPON (2) ------- (None) > --- INVENTORY (5) ---- Ion Engine Wheel Corruption Screen Corruption Screen Peak State ------------ > --- POWER ------------ (None) > --- PROPULSION ------- (None) > --- UTILITY ---------- Advanced Targeting Computer Improved Target Analyzer Core Analyzer Precision Matter Filter Corruption Screen Corruption Screen > --- WEAPON ----------- (None) > --- INVENTORY -------- Ion Engine Wheel Corruption Screen Corruption Screen [Rating: 28] Favorites ----------- Power None Propulsion Light Treads Treads Light Treads Hover Unit Antigrav System Utility Corruption Screen Device Precision Matter Filter Processor Corruption Screen Weapon Light Assault Rifle Ballistic Gun Light Assault Rifle Special Weapon Mining Laser Build | -11 -10 -9 -8 -7 -6 -5 -5 -4 ------- Run | Scr Mat Mat Mat Fac Fac Fac DSF Fac Slots Evolved 12 | . . 2 2 2 2 2 . 2 Power . | . . . . . . . . . Propulsion 2 | . . . . 1 . 1 . . Utility 10 | . . 2 2 1 2 1 . 2 Weapon . | . . . . . . . . . Parts Attached 11 | 1 1 2 3 1 1 1 . 1 Power . | . . . . . . . . . Engine . | . . . . . . . . . Core . | . . . . . . . . . Reactor . | . . . . . . . . . Propulsion 3 | . . 2 . . . . . 1 Treads 2 | . . 2 . . . . . . Leg . | . . . . . . . . . Wheel . | . . . . . . . . . Hover 1 | . . . . . . . . 1 Flight . | . . . . . . . . . Utility 6 | . . . 3 1 1 1 . . Device 1 | . . . . . . 1 . . Storage . | . . . . . . . . . Processor 5 | . . . 3 1 1 . . . Hackware . | . . . . . . . . . Protection . | . . . . . . . . . Artifact . | . . . . . . . . . Weapon 2 | 1 1 . . . . . . . Energy Gun . | . . . . . . . . . Energy Cannon . | . . . . . . . . . Ballistic Gun 1 | 1 . . . . . . . . Ballistic Cannon . | . . . . . . . . . Launcher . | . . . . . . . . . Special Weapon 1 | . 1 . . . . . . . Impact Weapon . | . . . . . . . . . Slashing Weapon . | . . . . . . . . . Piercing Weapon . | . . . . . . . . . Special Melee Weapon . | . . . . . . . . . Unidentified Prototypes 1 | . . . . . . 1 . . Parts Lost 8 | . 1 1 . . 2 . 3 1 Power . | . . . . . . . . . Propulsion 2 | . . . . . 2 . . . Utility 4 | . . . . . . . 3 1 Weapon 2 | . 1 1 . . . . . . Highest Loss Streak 3 | . 1 1 . . 2 . 3 1 To Critical Strikes . | . . . . . . . . . Average Slot Usage (%) 29 | . 16 13 40 45 41 29 20 8 Treads 9 | . . 8 18 15 13 . . . Processor 18 | . . . 22 29 27 29 20 8 Ballistic Gun 1 | . 14 4 . . . . . . Naked Turns 4 | . . 4 . . . . . . Heaviest Build 5 | 1 2 1 . . . 5 . . Greatest Support 11 | 3 3 3 3 3 3 3 3 11 Greatest Overweight (x) 1 | . . . . . . 1 . . Average Overweight (x) . | . . . . . . . . . Largest Inventory Capacity 5 | 5 5 5 5 5 5 5 5 5 Average Capacity 5 | 5 5 5 5 5 5 5 5 5 Most Carried 4 | 4 4 4 4 4 4 4 4 4 Average Carried 3 | 4 4 3 3 4 4 4 4 4 Final Capacity 5 | 5 5 5 5 5 5 5 5 5 Final Carried 4 | 4 4 2 4 4 4 4 4 4 Class Distribution -------------------- 100% | Mutant Dominant Class ---------------- Mutant | -10/Materials Mutant | -9/Materials Mutant | -8/Materials Mutant | -7/Factory Mutant | -6/Factory Mutant | -5/Factory Mutant | -5/DSF Mutant | -4/Factory Resources | -11 -10 -9 -8 -7 -6 -5 -5 -4 ----------- Run | Scr Mat Mat Mat Fac Fac Fac DSF Fac Matter Collected 252 | 185 . . 56 11 . . . . Remotely . | . . . . . . . . . Salvage Created . | . . . . . . . . . Parts . | . . . . . . . . . Haulers Intercepted . | . . . . . . . . . Recyclers Shooed . | . . . . . . . . . Parts Field Recycled . | . . . . . . . . . Retrieved Matter . | . . . . . . . . . Parts Self-Destructed . | . . . . . . . . . Prevented . | . . . . . . . . . Kills | -11 -10 -9 -8 -7 -6 -5 -5 -4 ------- Run | Scr Mat Mat Mat Fac Fac Fac DSF Fac Combat Hostiles Destroyed . | . . . . . . . . . Classes Destroyed . | . . . . . . . . . Best Kill Streak . | . . . . . . . . . Combat Bots Only . | . . . . . . . . . Max Kills in Single Turn . | . . . . . . . . . Gunslinging . | . . . . . . . . . Exploded . | . . . . . . . . . Melee . | . . . . . . . . . Uniques/NPCs Destroyed . | . . . . . . . . . Combat | -11 -10 -9 -8 -7 -6 -5 -5 -4 -------- Run | Scr Mat Mat Mat Fac Fac Fac DSF Fac Damage Taken 2289 | . 180 81 47 195 78 . 507 1201 Core 1791 | . 80 30 15 13 27 . 462 1164 Absorbed by Shields . | . . . . . . . . . Core Remaining (%) 86 | 100 68 92 97 98 96 . 53 . Volleys Fired . | . . . . . . . . . Largest . | . . . . . . . . . Hottest . | . . . . . . . . . Shots Fired . | . . . . . . . . . Gun . | . . . . . . . . . Cannon . | . . . . . . . . . Launcher . | . . . . . . . . . Special . | . . . . . . . . . Kinetic . | . . . . . . . . . Thermal . | . . . . . . . . . Explosive . | . . . . . . . . . Electromagnetic . | . . . . . . . . . Robot Hit Streak . | . . . . . . . . . Robot Miss Streak . | . . . . . . . . . Penetration Max . | . . . . . . . . . Secondary Targets . | . . . . . . . . . Shots Hit Robots . | . . . . . . . . . Core Hits 3 | . . 1 1 . . . . 1 Critical Kills . | . . . . . . . . . Critical Parts Destroyed . | . . . . . . . . . Critical Strikes . | . . . . . . . . . Melee Attacks . | . . . . . . . . . Impact . | . . . . . . . . . Slashing . | . . . . . . . . . Piercing . | . . . . . . . . . Sneak Attacks . | . . . . . . . . . Combat Hostiles . | . . . . . . . . . Follow-up Attacks . | . . . . . . . . . Damage Inflicted 54 | . . 11 4 . 12 . . 27 Guns . | . . . . . . . . . Cannons . | . . . . . . . . . Explosions . | . . . . . . . . . Melee . | . . . . . . . . . Ramming 54 | . . 11 4 . 12 . . 27 Kinetic . | . . . . . . . . . Thermal . | . . . . . . . . . Explosive . | . . . . . . . . . Electromagnetic . | . . . . . . . . . Impact . | . . . . . . . . . Slashing . | . . . . . . . . . Piercing . | . . . . . . . . . Highest Corruption 1 | . . . . . . . . 1 Average Corruption 1 | . . . . . . . . 1 Corruption Purged . | . . . . . . . . . Corruption Blocked 5 | . . . . 4 1 . . . Overload Shots . | . . . . . . . . . Overflow Damage . | . . . . . . . . . Projectiles . | . . . . . . . . . Explosions . | . . . . . . . . . Melee . | . . . . . . . . . Knockbacks . | . . . . . . . . . Impact . | . . . . . . . . . Kinetic . | . . . . . . . . . Secondary . | . . . . . . . . . Self-Inflicted Damage 25 | . . 5 1 . 6 . . 13 Shots . | . . . . . . . . . Rammed 12 | . . 3 2 . 1 . . 6 Targets Rammed 12 | . . 3 2 . 1 . . 6 Kicked . | . . . . . . . . . Crushed . | . . . . . . . . . Highest Temperature . | . . . . . . . . . Average Temperature . | . . . . . . . . . Received Heat Transfer 168 | . 36 9 9 63 12 . 27 12 Siege Activations . | . . . . . . . . . Robots Corrupted . | . . . . . . . . . Combat Hostiles . | . . . . . . . . . Parts Fried . | . . . . . . . . . Impact Corruptions . | . . . . . . . . . Robots Melted . | . . . . . . . . . Combat Hostiles . | . . . . . . . . . Parts Melted . | . . . . . . . . . Heat Transferred . | . . . . . . . . . Parts Sabotaged . | . . . . . . . . . Parts Stolen . | . . . . . . . . . Parts Stripped . | . . . . . . . . . Power Chain Reactions . | . . . . . . . . . Missiles Intercepted . | . . . . . . . . . Alert | -11 -10 -9 -8 -7 -6 -5 -5 -4 ------- Run | Scr Mat Mat Mat Fac Fac Fac DSF Fac Peak Influence 192 | . 41 50 50 192 98 57 39 139 Initial 93 | . . 16 20 22 93 42 39 4 Average 55 | . 19 18 28 82 93 44 28 81 Maximum Alert Level . | . . . . . . . . . Low Security (%) 100 | 100 100 100 100 100 100 100 100 100 Level 1 . | . . . . . . . . . Level 2 . | . . . . . . . . . Level 3 . | . . . . . . . . . Level 4 . | . . . . . . . . . Level 5 . | . . . . . . . . . High Security . | . . . . . . . . . Max Security . | . . . . . . . . . Squads Dispatched 12 | . 3 . 2 4 . . 1 2 Investigation 6 | . 2 . 1 2 . . . 1 Extermination . | . . . . . . . . . Reinforcement 6 | . 1 . 1 2 . . 1 1 Assault . | . . . . . . . . . Garrison . | . . . . . . . . . Intercept . | . . . . . . . . . Searches Triggered . | . . . . . . . . . Construction Impeded . | . . . . . . . . . Haulers Reinforced . | . . . . . . . . . Active Scanning Responses . | . . . . . . . . . Cargo Convoy Interrupts . | . . . . . . . . . Stealth | -11 -10 -9 -8 -7 -6 -5 -5 -4 --------- Run | Scr Mat Mat Mat Fac Fac Fac DSF Fac Distress Signals 4 | . . 2 1 1 . . . . Communications Jammed . | . . . . . . . . . Distress Signals . | . . . . . . . . . Times Spotted 52 | . 8 6 3 13 1 . 3 18 Peak Tracking Total 11 | . 7 8 6 6 1 . 3 11 Tactical Retreats 6 | . 1 . . 2 . . . 3 Traps | -11 -10 -9 -8 -7 -6 -5 -5 -4 ------- Run | Scr Mat Mat Mat Fac Fac Fac DSF Fac Traps Triggered 2 | . 1 . . 1 . . . . Indirectly . | . . . . . . . . . Trap Hack Attempts . | . . . . . . . . . Triggered . | . . . . . . . . . Disarmed . | . . . . . . . . . Reprogrammed . | . . . . . . . . . Reused . | . . . . . . . . . Traps Extracted . | . . . . . . . . . Installed . | . . . . . . . . . Triggered . | . . . . . . . . . Machines | -11 -10 -9 -8 -7 -6 -5 -5 -4 ---------- Run | Scr Mat Mat Mat Fac Fac Fac DSF Fac Machines Disabled . | . . . . . . . . . Max in Single Turn . | . . . . . . . . . Garrison Access 3 | . . . 1 1 . 1 . . Machines Sabotaged . | . . . . . . . . . Garrisons Compromised . | . . . . . . . . . Overloaded Fab Kills 2 | . . . . 2 . . . . Hacking | -11 -10 -9 -8 -7 -6 -5 -5 -4 --------- Run | Scr Mat Mat Mat Fac Fac Fac DSF Fac Machines Accessed 14 | . 3 2 2 4 . 2 . 1 Terminals 10 | . 3 2 1 2 . 1 . 1 Fabricators 1 | . . . . 1 . . . . Repair Stations . | . . . . . . . . . Recycling Units . | . . . . . . . . . Scanalyzers . | . . . . . . . . . Garrison Access 3 | . . . 1 1 . 1 . . Total Hacks 32 | . 11 3 5 5 . 5 . 3 Successful 11 | . 3 2 2 2 . 2 . . Failed 21 | . 8 1 3 3 . 3 . 3 Catastrophic 5 | . 1 1 . 2 . . . 1 Database Lockouts . | . . . . . . . . . Manual 23 | . 11 1 3 4 . . . 4 Terminals 26 | . 11 3 3 3 . 3 . 3 Fabricators 1 | . . . . 1 . . . . Repair Stations . | . . . . . . . . . Recycling Units . | . . . . . . . . . Scanalyzers . | . . . . . . . . . Garrison Access 5 | . . . 2 1 . 2 . . Terminal Hacks 7 | . 3 2 1 . . 1 . . Open DSF 1 | . . . . . . 1 . . Level Access Points 2 | . 1 1 . . . . . . Terminal Index 2 | . 1 . 1 . . . . . Unreport Threat 1 | . . 1 . . . . . . Zone Layout 1 | . 1 . . . . . . . Fabricator Hacks . | . . . . . . . . . Repair Station Hacks . | . . . . . . . . . Recycling Unit Hacks . | . . . . . . . . . Scanalyzer . | . . . . . . . . . Garrison Access Hacks 3 | . . . 1 1 . 1 . . Seal Access 3 | . . . 1 1 . 1 . . Unauthorized Hacks 1 | . . . . 1 . . . . Terminals . | . . . . . . . . . Fabricators 1 | . . . . 1 . . . . Overload 1 | . . . . 1 . . . . Repair Stations . | . . . . . . . . . Recycling Units . | . . . . . . . . . Scanalyzers . | . . . . . . . . . Garrison Access . | . . . . . . . . . Data Cores Recovered . | . . . . . . . . . Used . | . . . . . . . . . Hacking Detections 11 | . 3 2 1 2 . 2 . 1 Full Trace Events 6 | . 3 . 1 1 . . . 1 Feedback Events 1 | . . . . 1 . . . . Corruption 1 | . . . . 1 . . . . Feedback Blocked . | . . . . . . . . . Robot Schematics Acquired . | . . . . . . . . . Robots Built . | . . . . . . . . . Authchips . | . . . . . . . . . Time . | . . . . . . . . . Total Robot Build Rating . | . . . . . . . . . Part Schematics Acquired . | . . . . . . . . . Parts Built . | . . . . . . . . . Authchips . | . . . . . . . . . Time . | . . . . . . . . . Total Part Build Rating . | . . . . . . . . . Parts Repaired . | . . . . . . . . . Time . | . . . . . . . . . Parts Recycled . | . . . . . . . . . Recycled Matter . | . . . . . . . . . Retrieved Matter . | . . . . . . . . . Retrieved Components . | . . . . . . . . . Parts Scanalyzed . | . . . . . . . . . Part Schematics Acquired . | . . . . . . . . . Parts Damaged . | . . . . . . . . . Bothacking | -11 -10 -9 -8 -7 -6 -5 -5 -4 ------------ Run | Scr Mat Mat Mat Fac Fac Fac DSF Fac Used RIF Installer . | . . . . . . . . . Robots Hacked . | . . . . . . . . . Non-combat . | . . . . . . . . . Combat . | . . . . . . . . . Robot Hacks Applied . | . . . . . . . . . Relay Couplers Released . | . . . . . . . . . Fabnet Peak Effective % . | . . . . . . . . . Robots Rewired . | . . . . . . . . . Allies Hacked . | . . . . . . . . . Hacks Repelled . | . . . . . . . . . Allies | -11 -10 -9 -8 -7 -6 -5 -5 -4 -------- Run | Scr Mat Mat Mat Fac Fac Fac DSF Fac Total Allies . | . . . . . . . . . Largest Group . | . . . . . . . . . Highest-Rated Group . | . . . . . . . . . Highest-Rated Ally . | . . . . . . . . . Total Orders . | . . . . . . . . . Ally Attacks . | . . . . . . . . . Total Damage . | . . . . . . . . . Kills . | . . . . . . . . . Allies Corrupted . | . . . . . . . . . Allies Melted . | . . . . . . . . . Intel | -11 -10 -9 -8 -7 -6 -5 -5 -4 ------- Run | Scr Mat Mat Mat Fac Fac Fac DSF Fac Robot Analysis Total . | . . . . . . . . . Derelict Logs Recovered . | . . . . . . . . . Drone Launches . | . . . . . . . . . Drone Recoveries . | . . . . . . . . . Exploration | -11 -10 -9 -8 -7 -6 -5 -5 -4 ------------- Run | Scr Mat Mat Mat Fac Fac Fac DSF Fac Turns Passed 595 | 1 60 54 106 155 50 33 40 96 Spaces Moved 1111 | 1 117 97 194 288 96 61 80 177 Core 1110 | 1 117 97 194 288 96 61 80 176 Treads . | . . . . . . . . . Legs . | . . . . . . . . . Wheels . | . . . . . . . . . Hover 1 | . . . . . . . . 1 Flight . | . . . . . . . . . Fastest Speed 50 | 50 50 50 50 50 50 50 50 50 Average Speed 50 | 50 50 50 50 50 50 50 50 50 Slowest Speed 100 | 50 50 50 50 50 50 100 50 60 Overloaded Moves . | . . . . . . . . . Propulsion Burnouts . | . . . . . . . . . Robots Hopped . | . . . . . . . . . Cave-ins Triggered . | . . . . . . . . . Exploration Rate (%) 21 | 2 36 15 24 15 5 1 87 7 Regions Visited 8 Branch Regions . Pre-discovered Areas . | . . . . . . . . . Known Exits Taken 3 | . 1 1 . . . 1 . . Unknown Exits Taken 4 | 1 . . 1 1 1 . . . Scrap Searched . | . . . . . . . . . Spaces Dug . | . . . . . . . . . Terrain Destroyed . | . . . . . . . . . Melee . | . . . . . . . . . Projectile . | . . . . . . . . . AOE . | . . . . . . . . . Terrain Rammed . | . . . . . . . . . Walls Destroyed . | . . . . . . . . . Machines Disabled . | . . . . . . . . . Actions | -11 -10 -9 -8 -7 -6 -5 -5 -4 --------- Run | Scr Mat Mat Mat Fac Fac Fac DSF Fac Total 1138 | 1 117 101 200 297 97 62 79 184 Wait 9 | . . . . 9 . . . . Move 1104 | . 116 96 193 287 96 60 79 177 Hop . | . . . . . . . . . Pick Up 2 | . . . 2 . . . . . Fast Attach 8 | . 1 . 3 1 1 1 . 1 Attach 3 | 1 . 2 . . . . . . Detach . | . . . . . . . . . Swap . | . . . . . . . . . Drop 1 | . . . . . . 1 . . Fire . | . . . . . . . . . Melee . | . . . . . . . . . Ram 11 | . . 3 2 . . . . 6 Kick . | . . . . . . . . . Crush . | . . . . . . . . . Escape Stasis . | . . . . . . . . . Rewire . | . . . . . . . . . Trap . | . . . . . . . . . Miscellaneous . | . . . . . . . . . Route ------- -11/Scrapyard -10/Materials (discovered 4 exits: *Mat x3 / [*Min]) -9/Materials (discovered 3 exits: *Mat x3) -8/Materials -7/Factory -6/Factory -5/Factory -5/DSF -4/Factory History --------- Turn | Location | Event 1 | -11/Scrapyard | Released all parts (6) 2 | -11/Scrapyard | Discovered new exit (range 0) 2 | -11/Scrapyard | Entered Materials 20 | -10/Materials | Identified exit to Materials 24 | -10/Materials | Discovered new exit (range 8) 62 | -10/Materials | Entered another Materials area 62 | -9/Materials | Evolved 2 slots: Utility x2 79 | -9/Materials | Identified exit to Materials 116 | -9/Materials | Entered another Materials area 116 | -8/Materials | Evolved 2 slots: Utility x2 214 | -8/Materials | Discovered new exit (range 16) 222 | -8/Materials | Entered Factory 222 | -7/Factory | Evolved 2 slots: Propulsion x1, Utility x1 316 | -7/Factory | Build established: Mutant 371 | -7/Factory | Discovered new exit (range 13) 377 | -7/Factory | Entered another Factory area 377 | -6/Factory | Evolved 2 slots: Utility x2 420 | -6/Factory | Discovered new exit (range 16) 427 | -6/Factory | Entered another Factory area 427 | -5/Factory | Evolved 2 slots: Propulsion x1, Utility x1 460 | -5/Factory | Identified exit to DSF 460 | -5/Factory | Entered DSF 483 | -5/DSF | Additional patrols routed to DSF 493 | -5/DSF | Discovered new exit (range 15) 500 | -5/DSF | Entered Factory 500 | -4/Factory | Evolved 2 slots: Utility x2 518 | -4/Factory | Lost 3 parts (3u) 564 | -4/Factory | Core integrity fell below 50% 587 | -4/Factory | Core integrity fell below 20% 596 | -4/Factory | Destroyed by S-27 Virus with Autogun Last Messages --------------- 00514_ K-01 Serf destroyed. 00517_ K-01 Serf collects debris. 00527_ Connecting with Terminal... 00527_ Current location identified: Factory 00527_ ALERT: Suspicious activity at Terminal F004. Dispatching Investigation squad. 00530_ K-01 Serf pushes L-61 Swordsman. 00534_ K-01 Serf collects debris. 00558_ K-01 Serf pushes G-67 Veteran. 00563_ K-01 Serf destroyed. 00563_ K-01 Serf pushes G-67 Veteran. 00568_ K-01 Serf cleans the Assembly Bed. 00576_ Connecting with Recycling Unit... 00578_ Adv. Targeting Computer destroyed. 00579_ Slammed into S-27 Virus. 00579_ Destabilizing: System corrupted (+1). 00580_ Slammed into S-27 Virus. 00592_ S-27 Virus destroyed. 00595_ Acquired Antigrav System. 00596_ S-27 Virus destroyed. Map ----- +----------------------------------------------------+ | #??????????# "Y" #??????????????? | | #??????????# ##########?????? | | ???????????# ! % # #?????? | | ?? ??#######????########+## #?????? | | ???? ????+ ?????# ####%## #?????? | | ???###+####### #??????# %%## #?????? | | ???# #??????# %%## = #?????? | | ???# ######## / #?????? | | ???# # #?????? | | ???# + #?????? | | ???# # #?????? | | ???# !! """ """ """ """ """ """ ##########?????? | | #### !! """ """ """ """ """s""" #??????????????? | | !! """ """ """ """ """ """ #??????????????? | | = * #??????????????? | | ss #??????????????? | | #??????????????? | | !#??????????????? | | #/########## # s #??????????????? | | ????????####+#########s """" +??????????????? | | ??????????? ????????# %"""" #??????????????? | | ??????????""????????# *"""" #??????????????? | | ??????????"S????????# ss"""" #?????????????? | | ??????????" ????##### """" #?????????????? | | ???????????????+ """" #?????????????? | | ???????????????#####@ #?????????????? | | ???????????????????# #?????????????? | | ??????????????????######## #?????????????? | | #####??????????????????????????? #?????????????? | | ???????????????????????????????? #?????????????? | | ????????????????????????????????? ? #????????????? | | ????????????????????????????????????#????????????? | | ?????????????????????????????????????????????????? | | ?????????????????????????????????????????????????? | | ?????????????????????????????????????????????????? | | ?????????????????????????????????????????????????? | | ?????????????????????????????????????????????????? | | ?????????????????????????????????????????????????? | | ?????????????????????????????????????????????????? | | ?????????????????????????????????????????????????? | | ?????????????????????????????????????????????????? | | ?????????????????????????????????????????????????? | | ?????????????????????????????????????????????????? | | ?????????????????????????????????????????????????? | | ?????????????????????????????????????????????????? | | ?????????????????????????????????????????????????? | | ?????????????????????????????????????????????????? | | ?????????????????????????????????????????????????? | | ?????????????????????????????????????????????????? | | ?????????????????????????????????????????????????? | +----------------------------------------------------+ Best States ------------- Heat Dissipation 43 Energy Generation 5 Energy Capacity 100 Matter Stores 300 Matter Capacity 300 Sight Range 16 Terrain Scan Density 10 Corruption Block 16 Evasion (%) 50 Targeting Accuracy 8 Target Analysis 6 Core Analysis 6 Item Schematics ----------------- None Robot Schematics ------------------ None Fabricated ------------ Nothing Alien Tech Used ----------------- None Achievements -------------- None Challenges ------------ None Game ------ Seed SpacefoldActiveInsulator Manual? 0 Play Time 00:13:39 Cumulative 139.2 hours Start 2022.05.01 @ 05:03:56 End 2022.05.01 @ 05:15:40 Sessions 1 Manual Loads 0 Difficulty Rogue Special Mode None Game No. 194 Rogue 193 Adventurer 0 Explorer 1 Win Type - Total 5 Types 5/0/0/0/0/0/0/0/0 Lore% 59 Gallery% 60 Achievement% 50 Wizard Run 0 Options --------- ASCII 1 Keyboard 0 Movement Vi Keybinds 0 Fullscreen 1 Font 18/SmallcapsGlow Map View 76x50 Tactical HUD 1 Map Filters NONE Filters NONE Steam 1 RUN: 1b9b5dff-787b-450a-b9e6-176860e0c45f